[Event "45th FIDE Womens Olympiad 2024"]
[Site "Budapest"]
[Date "2024.09.13"]
[Round "3.18"]
[White "Zimina, Olga"]
[Black "Song, Yuxin"]
[Result "1/2-1/2"]
[ECO "A46"]
[WhiteElo "2302"]
[BlackElo "2373"]
[Annotator "RC"]
[PlyCount "67"]
[EventDate "2024.09.05"]
[EventType "team-tourn"]
[EventCountry "HUN"]
[SourceTitle "playchess.com"]
[Source "ChessBase"]
[SourceQuality "1"]
[WhiteTeam "Italy"]
[BlackTeam "China"]
[WhiteTeamCountry "ITA"]
[BlackTeamCountry "CHN"]
[TimeControl "40/5400+30:1800+30"]

1. d4 {[%emt 0:00:06]} Nf6 {[%emt 0:00:05]} 2. Nf3 {[%emt 0:00:05]} e6 {[%emt 0:00:06]} 3. g3 {[%emt 0:00:05]} b5 {[%emt 0:00:04]} 4. e3 {[%emt 0:00:05]} a6 {[%emt 0:00:05]} 5. a4 {[%emt 0:00:10]} b4 {[%emt 0:00:07]} 6. Bg2 {[%emt 0:00:04]} Bb7 {[%emt 0:00:06]} 7. O-O {[%emt 0:00:16]} c5 {[%emt 0:01:06]} 8. c4 {[%emt 0:00:07]} bxc3 {[%emt 0:00:04]} 9. bxc3 {[%emt 0:05:07]} Be7 {[%emt 0:05:39]} 10. Ba3 {[%emt 0:03:47]} Qc7 {[%emt 0:06:32]} 11. Nbd2 {[%emt 0:00:22]} d6 {[%emt 0:02:40]} 12. Rb1 {[%emt 0:08:06]} Nbd7 {[%emt 0:02:58]} 13. Re1 {[%emt 0:00:32]} Bc6 {[%emt 0:08:41]} 14. e4 {[%emt 0:15:14]} Qa5 {[%emt 0:11:52]} 15. Nc4 {[%emt 0:07:28]} Qxa4 {[%emt 0:00:29]} 16. Qxa4 {[%emt 0:00:36]} Bxa4 {[%emt 0:00:05]} 17. e5 {[%emt 0:01:05]} dxe5 {[%emt 0:00:29]} 18. Nfxe5 {[%emt 0:00:56]} Rc8 {[%emt 0:15:51]} 19. Nxd7 {[%emt 0:31:20]} Nxd7 {[%emt 0:00:05]} 20. d5 {[%emt 0:03:40]} Bb5 {[%emt 0:01:15]} 21. dxe6 {[%emt 0:02:16]} fxe6 {[%emt 0:00:13]} 22. Nd2 {[%emt 0:01:52]} e5 {[%emt 0:04:40]} 23. c4 {[%emt 0:01:30]} Bc6 {[%emt 0:00:46]} 24. Bxc6 {[%emt 0:01:01]} Rxc6 {[%emt 0:00:01]} 25. Rb7 {[%emt 0:04:56]} Bd8 {[%emt 0:00:11]} 26. Ne4 {[%emt 0:04:50]} Rc7 {[%emt 0:00:06]} 27. Reb1 {[%emt 0:02:02]} O-O {[%emt 0:01:03]} 28. Rxc7 Bxc7 {[%emt 0:00:02]} 29. Rb7 {[%emt 0:03:04]} Rc8 {[%emt 0:00:10]} 30. Nxc5 {[%emt 0:03:51]} Nxc5 {[%emt 0:06:23]} 31. Bxc5 {[%emt 0:00:01]} Ba5 {[%emt 0:00:10]} 32. Bd6 {[%emt 0:01:00]} Bc3 {[%emt 0:00:01]} 33. c5 {[%emt 0:00:27]} Bd4 {[%emt 0:00:02]} 34. Ra7 {[%emt 0:00:30]} 1/2-1/2

[Event "45th FIDE Womens Olympiad 2024"]
[Site "Budapest"]
[Date "2024.09.13"]
[Round "3.19"]
[White "Guo, Qi"]
[Black "Gueci, Tea"]
[Result "1-0"]
[ECO "D37"]
[WhiteElo "2367"]
[BlackElo "2199"]
[Annotator "RC"]
[PlyCount "67"]
[EventDate "2024.09.05"]
[EventType "team-tourn"]
[EventCountry "HUN"]
[SourceTitle "playchess.com"]
[Source "ChessBase"]
[SourceQuality "1"]
[WhiteTeam "China"]
[BlackTeam "Italy"]
[WhiteTeamCountry "CHN"]
[BlackTeamCountry "ITA"]
[TimeControl "40/5400+30:1800+30"]

1. d4 {[%emt 0:00:09]} d5 {[%emt 0:00:04]} 2. c4 {[%emt 0:00:11]} e6 {[%emt 0:00:02]} 3. Nc3 {[%emt 0:00:17]} h6 {[%emt 0:00:04]} 4. Nf3 {[%emt 0:03:46]} Nf6 {[%emt 0:00:06]} 5. g3 {[%emt 0:03:24]} Nc6 {[%emt 0:00:27]} 6. Ne5 {[%emt 0:04:14]} Nxe5 {[%emt 0:20:32]} 7. dxe5 {[%emt 0:00:15]} Nd7 {[%emt 0:00:17]} 8. cxd5 {[%emt 0:01:26]} Nxe5 {[%emt 0:01:29]} 9. Qa4+ {[%emt 0:02:15]} Nd7 {[%emt 0:16:55]} 10. dxe6 {[%emt 0:01:14]} fxe6 {[%emt 0:00:03]} 11. Bh3 {[%emt 0:02:19]} Qf6 {[%emt 0:03:29]} 12. Qc4 {[%emt 0:00:36]} Nb6 {[%emt 0:07:26]} 13. Qxc7 {[%emt 0:03:50]} Bb4 {[%emt 0:00:17]} 14. O-O {[%emt 0:05:35]} O-O {[%emt 0:03:19]} 15. Be3 {[%emt 0:04:42]} Rf7 {[%emt 0:08:58]} 16. Qf4 {[%emt 0:00:35]} Bxc3 {[%emt 0:04:49]} 17. bxc3 {[%emt 0:00:11]} Qxc3 {[%emt 0:01:39]} 18. Qh4 {[%emt 0:08:38]} Bd7 {[%emt 0:05:33]} 19. Rad1 {[%emt 0:08:50]} Nd5 {[%emt 0:03:00]} 20. Bd4 {[%emt 0:02:33]} Qc7 {[%emt 0:01:41]} 21. e4 {[%emt 0:05:10]} Nf6 {[%emt 0:00:57]} 22. Bxf6 {[%emt 0:00:36]} Rxf6 {[%emt 0:00:31]} 23. e5 {[%emt 0:00:07]} Rf7 {[%emt 0:03:15]} 24. Rd6 {[%emt 0:00:34]} Re8 {[%emt 0:00:29]} 25. Qd4 {[%emt 0:00:26]} Rfe7 {[%emt 0:03:14]} 26. Qxa7 {[%emt 0:01:13]} Kh8 {[%emt 0:02:08]} 27. Bg2 {[%emt 0:05:34]} Bb5 {[%emt 0:01:56]} 28. Rb1 {[%emt 0:01:17]} Ba6 {[%emt 0:00:25]} 29. Qd4 {[%emt 0:03:01]} Rc8 {[%emt 0:04:15]} 30. Rd1 {[%emt 0:00:55]} Bc4 {[%emt 0:00:44]} 31. Rc1 {[%emt 0:01:59]} b5 {[%emt 0:00:50]} 32. a4 {[%emt 0:00:04]} Qa7 {[%emt 0:05:39]} 33. Qxa7 {[%emt 0:00:22]} Rxa7 {[%emt 0:00:03]} 34. axb5 {[%emt 0:00:07]} 1-0

[Event "45th FIDE Womens Olympiad 2024"]
[Site "Budapest"]
[Date "2024.09.13"]
[Round "3.20"]
[White "Sedina, Elena"]
[Black "Lu, Miaoyi"]
[Result "0-1"]
[ECO "B30"]
[WhiteElo "2196"]
[BlackElo "2438"]
[Annotator "RC"]
[PlyCount "72"]
[EventDate "2024.09.05"]
[EventType "team-tourn"]
[EventCountry "HUN"]
[SourceTitle "playchess.com"]
[Source "ChessBase"]
[SourceQuality "1"]
[WhiteTeam "Italy"]
[BlackTeam "China"]
[WhiteTeamCountry "ITA"]
[BlackTeamCountry "CHN"]
[TimeControl "40/5400+30:1800+30"]

1. e4 {[%emt 0:00:08]} c5 {[%emt 0:00:01]} 2. Nf3 {[%emt 0:00:12]} Nc6 {[%emt 0:00:02]} 3. Bb5 {[%emt 0:00:30]} Nf6 {[%emt 0:00:03]} 4. Nc3 {[%emt 0:01:27]} d6 {[%emt 0:00:05]} 5. e5 {[%emt 0:10:49]} Nd7 {[%emt 0:00:04]} 6. exd6 {[%emt 0:06:56]} e5 {[%emt 0:00:03]} 7. Bxc6 {[%emt 0:05:22]} bxc6 {[%emt 0:01:09]} 8. d3 {[%emt 0:00:08]} Bxd6 {[%emt 0:00:14]} 9. Nd2 {[%emt 0:05:02]} O-O {[%emt 0:05:27]} 10. Nc4 {[%emt 0:00:32]} Bc7 {[%emt 0:00:10]} 11. O-O {[%emt 0:17:47]} f5 {[%emt 0:00:11]} 12. f4 {[%emt 0:05:24]} Ba6 {[%emt 0:00:02]} 13. b3 {[%emt 0:02:03]} Nf6 {[%emt 0:01:57]} 14. Ne2 {[%emt 0:04:30]} Bxc4 {[%emt 0:17:15]} 15. bxc4 {[%emt 0:00:42]} Re8 {[%emt 0:02:09]} 16. Rb1 {[%emt 0:18:16]} exf4 {[%emt 0:16:13]} 17. Bxf4 {[%emt 0:03:43]} Ng4 {[%emt 0:00:01]} 18. Qd2 {[%emt 0:06:12]} Rxe2 {[%emt 0:03:14]} 19. Qxe2 {[%emt 0:06:22]} Qd4+ {[%emt 0:00:02]} 20. Kh1 {[%emt 0:00:05]} Bxf4 {[%emt 0:00:05]} 21. Qe6+ {[%emt 0:02:25]} Kh8 {[%emt 0:00:07]} 22. Qxc6 {[%emt 0:00:54]} Rf8 {[%emt 0:06:32]} 23. g3 {[%emt 0:00:36]} Bd6 {[%emt 0:01:09]} 24. Qf3 {[%emt 0:01:16]} Qf6 {[%emt 0:09:41]} 25. Rfe1 {[%emt 0:00:48]} Qh6 {[%emt 0:02:11]} 26. Re2 {[%emt 0:00:04]} Qh5 {[%emt 0:10:32]} 27. Rf1 {[%emt 0:00:58]} h6 {[%emt 0:02:16]} 28. Qg2 {[%emt 0:00:36]} Be5 {[%emt 0:03:24]} 29. Rfe1 {[%emt 0:00:35]} f4 {[%emt 0:06:38]} 30. gxf4 {[%emt 0:00:16]} Rxf4 {[%emt 0:00:36]} 31. Qa8+ {[%emt 0:00:45]} Kh7 {[%emt 0:00:03]} 32. Rg2 {[%emt 0:00:30]} Nxh2 {[%emt 0:02:17]} 33. Rxh2 {[%emt 0:00:06]} Rh4 {[%emt 0:00:03]} 34. Qe4+ {[%emt 0:01:00]} Rxe4 {[%emt 0:00:05]} 35. Rxh5 {[%emt 0:00:09]} Rxe1+ {[%emt 0:00:02]} 36. Kg2 {[%emt 0:00:27]} Kg6 {[%emt 0:00:49]} 0-1

[Event "45th FIDE Womens Olympiad 2024"]
[Site "Budapest"]
[Date "2024.09.13"]
[Round "3.21"]
[White "Efroimski, Marsel"]
[Black "Osmak, Yuliia"]
[Result "1/2-1/2"]
[ECO "B22"]
[WhiteElo "2408"]
[BlackElo "2471"]
[Annotator "RC"]
[PlyCount "199"]
[EventDate "2024.09.05"]
[EventType "team-tourn"]
[EventCountry "HUN"]
[SourceTitle "playchess.com"]
[Source "ChessBase"]
[SourceQuality "1"]
[WhiteTeam "Israel"]
[BlackTeam "Ukraine"]
[WhiteTeamCountry "ISR"]
[BlackTeamCountry "UKR"]
[TimeControl "40/5400+30:1800+30"]

1. e4 {[%emt 0:00:03]} c5 {[%emt 0:00:05]} 2. c3 {[%emt 0:00:23]} d5 {[%emt 0:00:14]} 3. exd5 {[%emt 0:00:04]} Qxd5 {[%emt 0:00:04]} 4. d4 {[%emt 0:00:07]} Nf6 {[%emt 0:00:13]} 5. Nf3 {[%emt 0:00:06]} e6 {[%emt 0:00:06]} 6. Na3 {[%emt 0:00:11]} a6 {[%emt 0:01:46]} 7. Nc4 {[%emt 0:00:05]} Nbd7 {[%emt 0:00:09]} 8. Be2 {[%emt 0:00:05]} b5 {[%emt 0:01:52]} 9. Ne3 {[%emt 0:00:08]} Qc6 {[%emt 0:00:49]} 10. a4 {[%emt 0:00:06]} Bb7 {[%emt 0:04:53]} 11. axb5 {[%emt 0:00:07]} axb5 {[%emt 0:00:04]} 12. Rxa8+ {[%emt 0:00:04]} Bxa8 {[%emt 0:00:04]} 13. dxc5 {[%emt 0:00:04]} Bxc5 {[%emt 0:03:17]} 14. Nd4 {[%emt 0:00:20]} Bxd4 {[%emt 0:01:25]} 15. Qxd4 {[%emt 0:02:37]} O-O {[%emt 0:00:30]} 16. O-O {[%emt 0:05:32]} Rb8 {[%emt 0:05:36]} 17. Rd1 {[%emt 0:03:28]} h6 {[%emt 0:03:28]} 18. Qa7 {[%emt 0:15:58]} Qc8 {[%emt 0:17:35]} 19. Nc2 {[%emt 0:12:04]} Bd5 {[%emt 0:08:08]} 20. Nb4 {[%emt 0:03:51]} Bc4 {[%emt 0:17:30]} 21. Bf3 {[%emt 0:05:31]} Ne5 {[%emt 0:00:17]} 22. Bc6 {[%emt 0:00:55]} Kh7 {[%emt 0:07:22]} 23. Qc5 {[%emt 0:19:16]} Bd5 {[%emt 0:12:56]} 24. Bf4 {[%emt 0:01:37]} Ne4 {[%emt 0:05:40]} 25. Qe3 {[%emt 0:05:21]} Nxc6 {[%emt 0:06:09]} 26. Nxd5 {[%emt 0:00:38]} exd5 {[%emt 0:00:05]} 27. Bxb8 {[%emt 0:00:46]} Nxb8 {[%emt 0:00:54]} 28. Rxd5 {[%emt 0:00:33]} Nf6 {[%emt 0:01:45]} 29. Qd3+ {[%emt 0:01:22]} g6 {[%emt 0:00:04]} 30. Rxb5 {[%emt 0:01:14]} Nbd7 {[%emt 0:01:13]} 31. h3 {[%emt 0:01:14]} Qa6 {[%emt 0:00:48]} 32. c4 {[%emt 0:00:49]} Qe6 {[%emt 0:00:20]} 33. Qd4 {[%emt 0:01:16]} Qe1+ {[%emt 0:00:59]} 34. Kh2 {[%emt 0:00:05]} Qe6 {[%emt 0:00:37]} 35. b4 {[%emt 0:01:25]} g5 {[%emt 0:00:27]} 36. f3 {[%emt 0:03:40]} Kg7 {[%emt 0:00:29]} 37. Ra5 {[%emt 0:03:35]} Qe1 {[%emt 0:00:27]} 38. c5 {[%emt 0:02:35]} Ne5 {[%emt 0:00:22]} 39. Ra3 {[%emt 0:03:49]} Nc6 {[%emt 0:00:33]} 40. Qc3 {[%emt 0:00:28]} Qxc3 {[%emt 0:00:26]} 41. Rxc3 {[%emt 0:30:02]} Nd5 {[%emt 0:30:29]} 42. Rd3 {[%emt 0:00:44]} Ncxb4 {[%emt 0:00:00]} 43. Rd4 {[%emt 0:00:00]} Kf6 {[%emt 0:00:00]} 44. c6 {[%emt 0:00:00]} Ke7 {[%emt 0:00:00]} 45. c7 {[%emt 0:00:00]} Kd7 {[%emt 0:00:00]} 46. Rc4 {[%emt 0:00:00]} Kc8 {[%emt 0:00:00]} 47. h4 {[%emt 0:00:00]} f6 {[%emt 0:00:00]} 48. Re4 {[%emt 0:00:00]} Kxc7 {[%emt 0:00:00]} 49. Re8 {[%emt 0:00:00]} gxh4 {[%emt 0:00:00]} 50. Rh8 {[%emt 0:00:00]} Kd6 {[%emt 0:00:00]} 51. Rxh6 {[%emt 0:00:00]} Ke6 {[%emt 0:00:00]} 52. Rxh4 {[%emt 0:00:00]} Nc6 {[%emt 0:00:00]} 53. Re4+ {[%emt 0:00:00]} Ne5 {[%emt 0:00:00]} 54. Ra4 {[%emt 0:00:00]} Ne3 {[%emt 0:00:00]} 55. Ra6+ {[%emt 0:00:00]} Kf5 {[%emt 0:00:00]} 56. g4+ {[%emt 0:00:00]} N3xg4+ {[%emt 0:00:00]} 57. fxg4+ {[%emt 0:00:00]} Nxg4+ {[%emt 0:00:00]} 58. Kg3 {[%emt 0:00:00]} Ne5 {[%emt 0:00:00]} 59. Kh4 {[%emt 0:00:00]} Kg6 {[%emt 0:00:00]} 60. Rb6 {[%emt 0:00:00]} Nc4 {[%emt 0:00:00]} 61. Rb1 {[%emt 0:00:00]} Ne5 {[%emt 0:00:00]} 62. Rf1 {[%emt 0:00:00]} Nc4 {[%emt 0:00:00]} 63. Rg1+ {[%emt 0:00:00]} Kf5 {[%emt 0:00:00]} 64. Kh5 {[%emt 0:00:00]} Ne5 {[%emt 0:00:00]} 65. Rf1+ {[%emt 0:00:00]} Ke6 {[%emt 0:00:00]} 66. Kh6 {[%emt 0:00:00]} Kf7 {[%emt 0:00:00]} 67. Kh7 {[%emt 0:00:00]} Nc6 {[%emt 0:00:00]} 68. Rf4 {[%emt 0:00:00]} Ne7 {[%emt 0:00:00]} 69. Kh6 {[%emt 0:00:00]} Ng8+ {[%emt 0:00:00]} 70. Kh5 {[%emt 0:00:00]} Ne7 {[%emt 0:00:00]} 71. Ra4 {[%emt 0:00:00]} Nc6 {[%emt 0:00:09]} 72. Ra6 {[%emt 0:00:00]} Ne7 {[%emt 0:00:34]} 73. Kh6 {[%emt 0:00:00]} Ng8+ {[%emt 0:00:21]} 74. Kh7 {[%emt 0:00:00]} Ne7 {[%emt 0:00:02]} 75. Rb6 {[%emt 0:00:00]} Nf5 {[%emt 0:00:15]} 76. Rb7+ {[%emt 0:00:00]} Ne7 {[%emt 0:00:06]} 77. Kh6 {[%emt 0:00:00]} Kf8 {[%emt 0:00:08]} 78. Kh5 {[%emt 0:00:00]} Kf7 {[%emt 0:00:05]} 79. Kg4 {[%emt 0:00:00]} Ke6 {[%emt 0:00:09]} 80. Kf4 {[%emt 0:00:00]} Nd5+ {[%emt 0:00:57]} 81. Ke4 {[%emt 0:00:00]} Ne7 {[%emt 0:00:05]} 82. Kd4 {[%emt 0:00:00]} Nc6+ {[%emt 0:00:57]} 83. Ke4 {[%emt 0:00:13]} Ne7 {[%emt 0:00:06]} 84. Rb6+ {[%emt 0:00:04]} Kf7 {[%emt 0:00:05]} 85. Kd4 {[%emt 0:00:06]} Nf5+ {[%emt 0:00:15]} 86. Kd5 {[%emt 0:00:22]} Ne7+ {[%emt 0:00:14]} 87. Kc5 {[%emt 0:00:07]} Nf5 {[%emt 0:00:38]} 88. Ra6 {[%emt 0:00:10]} Ne7 {[%emt 0:00:15]} 89. Kd6 {[%emt 0:00:13]} Nf5+ {[%emt 0:00:08]} 90. Kd7 {[%emt 0:00:06]} Ne7 {[%emt 0:02:17]} 91. Rb6 {[%emt 0:01:08]} Nf5 {[%emt 0:00:09]} 92. Rb7 {[%emt 0:00:50]} Ng7 {[%emt 0:01:42]} 93. Kc6+ {[%emt 0:02:58]} Kg6 {[%emt 0:00:20]} 94. Kd5 {[%emt 0:00:08]} Nf5 {[%emt 0:00:31]} 95. Ra7 {[%emt 0:00:41]} Ng7 {[%emt 0:00:13]} 96. Ke4 {[%emt 0:00:09]} Ne6 {[%emt 0:00:14]} 97. Re7 {[%emt 0:00:10]} Ng7 {[%emt 0:00:36]} 98. Kf4 {[%emt 0:00:29]} Nh5+ {[%emt 0:00:20]} 99. Kg4 {[%emt 0:00:05]} Ng7 {[%emt 0:00:03]} 100. Ra7 {[%emt 0:02:20]} 1/2-1/2

[Event "45th FIDE Womens Olympiad 2024"]
[Site "Budapest"]
[Date "2024.09.13"]
[Round "3.22"]
[White "Ushenina, Anna"]
[Black "Klinova, Masha"]
[Result "1-0"]
[ECO "A41"]
[WhiteElo "2417"]
[BlackElo "2227"]
[Annotator "RC"]
[PlyCount "151"]
[EventDate "2024.09.05"]
[EventType "team-tourn"]
[EventCountry "HUN"]
[SourceTitle "playchess.com"]
[Source "ChessBase"]
[SourceQuality "1"]
[WhiteTeam "Ukraine"]
[BlackTeam "Israel"]
[WhiteTeamCountry "UKR"]
[BlackTeamCountry "ISR"]
[TimeControl "40/5400+30:1800+30"]

1. d4 {[%emt 0:00:15]} d6 {[%emt 0:00:11]} 2. Nf3 {[%emt 0:00:36]} g6 {[%emt 0:00:11]} 3. c4 {[%emt 0:00:35]} Bg7 {[%emt 0:00:42]} 4. Nc3 {[%emt 0:03:43]} Nc6 {[%emt 0:04:47]} 5. d5 {[%emt 0:01:04]} Ne5 {[%emt 0:00:50]} 6. Nxe5 {[%emt 0:01:11]} Bxe5 {[%emt 0:00:05]} 7. e4 {[%emt 0:00:44]} Bg7 {[%emt 0:01:13]} 8. Be3 {[%emt 0:01:02]} e5 {[%emt 0:02:03]} 9. dxe6 {[%emt 0:19:57]} Bxe6 {[%emt 0:01:41]} 10. Qd2 {[%emt 0:02:11]} Nf6 {[%emt 0:08:49]} 11. Be2 {[%emt 0:04:36]} O-O {[%emt 0:02:09]} 12. O-O {[%emt 0:02:52]} Re8 {[%emt 0:05:53]} 13. f3 {[%emt 0:14:23]} a6 {[%emt 0:20:53]} 14. Rad1 {[%emt 0:03:42]} Rb8 {[%emt 0:03:21]} 15. b3 {[%emt 0:11:37]} Nd7 {[%emt 0:10:05]} 16. Rf2 {[%emt 0:08:04]} Ne5 {[%emt 0:03:06]} 17. Bf1 {[%emt 0:17:09]} f5 {[%emt 0:08:12]} 18. exf5 {[%emt 0:01:36]} gxf5 {[%emt 0:00:33]} 19. Ne2 {[%emt 0:03:44]} Bf7 {[%emt 0:05:26]} 20. Bg5 {[%emt 0:00:45]} Bf6 {[%emt 0:05:05]} 21. Bxf6 {[%emt 0:00:12]} Qxf6 {[%emt 0:00:06]} 22. Nf4 {[%emt 0:00:47]} Kh8 {[%emt 0:02:19]} 23. Qd4 {[%emt 0:00:25]} Rbd8 {[%emt 0:01:39]} 24. Kh1 {[%emt 0:00:26]} Qg7 {[%emt 0:01:34]} 25. g3 {[%emt 0:00:34]} c5 {[%emt 0:08:33]} 26. Qc3 {[%emt 0:00:11]} Nc6 {[%emt 0:00:17]} 27. Qxg7+ {[%emt 0:00:48]} Kxg7 {[%emt 0:00:03]} 28. Rfd2 {[%emt 0:00:18]} Nd4 {[%emt 0:00:06]} 29. Ne2 {[%emt 0:00:56]} Nxf3 {[%emt 0:02:04]} 30. Rxd6 {[%emt 0:00:04]} Rxd6 {[%emt 0:00:04]} 31. Rxd6 {[%emt 0:00:02]} Re7 {[%emt 0:02:16]} 32. Kg2 {[%emt 0:00:53]} Ng5 {[%emt 0:00:22]} 33. Nf4 {[%emt 0:00:27]} Ne4 {[%emt 0:00:12]} 34. Rd8 {[%emt 0:00:44]} Be8 {[%emt 0:01:57]} 35. Bd3 {[%emt 0:00:22]} Bc6 {[%emt 0:00:13]} 36. Nd5 {[%emt 0:00:55]} Re5 {[%emt 0:00:13]} 37. Bxe4 {[%emt 0:00:32]} Rxe4 {[%emt 0:00:17]} 38. Kf2 {[%emt 0:00:19]} Rd4 {[%emt 0:00:31]} 39. Ke3 {[%emt 0:00:14]} b5 {[%emt 0:00:37]} 40. Rd6 {[%emt 0:00:25]} Bxd5 {[%emt 0:01:06]} 41. cxd5 {[%emt 0:30:31]} a5 {[%emt 0:30:45]} 42. Ra6 {[%emt 0:00:00]} Rxd5 {[%emt 0:00:00]} 43. Rxa5 {[%emt 0:00:00]} b4 {[%emt 0:00:00]} 44. Kf4 {[%emt 0:00:00]} Kg6 {[%emt 0:00:00]} 45. Ra6+ {[%emt 0:00:00]} Kg7 {[%emt 0:00:00]} 46. Rc6 {[%emt 0:00:00]} Rd2 {[%emt 0:00:00]} 47. Rxc5 {[%emt 0:00:00]} Rxa2 {[%emt 0:00:00]} 48. Kxf5 {[%emt 0:00:00]} Rf2+ {[%emt 0:00:00]} 49. Kg5 {[%emt 0:00:00]} h6+ {[%emt 0:00:00]} 50. Kg4 {[%emt 0:00:00]} Rb2 {[%emt 0:00:00]} 51. Rc7+ {[%emt 0:00:00]} Kg6 {[%emt 0:00:00]} 52. Rc6+ {[%emt 0:00:00]} Kg7 {[%emt 0:00:00]} 53. Rb6 {[%emt 0:01:57]} Rxb3 {[%emt 0:00:00]} 54. Kh5 {[%emt 0:00:15]} Rc3 {[%emt 0:04:31]} 55. Rb7+ {[%emt 0:00:22]} Kf8 {[%emt 0:00:49]} 56. Kxh6 {[%emt 0:04:23]} Rc2 {[%emt 0:00:11]} 57. Rxb4 {[%emt 0:00:36]} Rxh2+ {[%emt 0:00:09]} 58. Kg6 {[%emt 0:00:03]} Ra2 {[%emt 0:01:39]} 59. Rb8+ {[%emt 0:00:11]} Ke7 {[%emt 0:00:05]} 60. g4 {[%emt 0:00:16]} Ra6+ {[%emt 0:00:40]} 61. Kg7 {[%emt 0:00:56]} Ra5 {[%emt 0:00:20]} 62. Rb7+ {[%emt 0:00:50]} Ke8 {[%emt 0:00:32]} 63. Rb8+ {[%emt 0:00:41]} Ke7 {[%emt 0:00:03]} 64. Rb4 {[%emt 0:00:37]} Re5 {[%emt 0:00:58]} 65. Rb7+ {[%emt 0:00:25]} Ke8 {[%emt 0:00:03]} 66. Kf6 {[%emt 0:00:12]} Ra5 {[%emt 0:01:08]} 67. Rb8+ {[%emt 0:00:16]} Kd7 {[%emt 0:00:09]} 68. g5 {[%emt 0:00:03]} Ra6+ {[%emt 0:00:10]} 69. Kf7 {[%emt 0:00:14]} Ra1 {[%emt 0:00:19]} 70. g6 {[%emt 0:01:29]} Rf1+ {[%emt 0:00:08]} 71. Kg8 {[%emt 0:00:06]} Ke7 {[%emt 0:00:25]} 72. g7 {[%emt 0:00:07]} Rh1 {[%emt 0:01:05]} 73. Rb4 {[%emt 0:00:17]} Ra1 {[%emt 0:00:38]} 74. Rf4 {[%emt 0:01:46]} Rb1 {[%emt 0:01:12]} 75. Rh4 {[%emt 0:00:41]} Kf6 {[%emt 0:01:04]} 76. Kh8 {[%emt 0:00:15]} 1-0

[Event "45th FIDE Womens Olympiad 2024"]
[Site "Budapest"]
[Date "2024.09.13"]
[Round "3.23"]
[White "Orian, Noga"]
[Black "Gaponenko, Inna"]
[Result "0-1"]
[ECO "A67"]
[WhiteElo "2187"]
[BlackElo "2324"]
[Annotator "RC"]
[PlyCount "108"]
[EventDate "2024.09.05"]
[EventType "team-tourn"]
[EventCountry "HUN"]
[SourceTitle "playchess.com"]
[Source "ChessBase"]
[SourceQuality "1"]
[WhiteTeam "Israel"]
[BlackTeam "Ukraine"]
[WhiteTeamCountry "ISR"]
[BlackTeamCountry "UKR"]
[TimeControl "40/5400+30:1800+30"]

1. d4 {[%emt 0:00:03]} Nf6 {[%emt 0:00:06]} 2. c4 {[%emt 0:00:09]} c5 {[%emt 0:01:52]} 3. d5 {[%emt 0:00:09]} e6 {[%emt 0:00:23]} 4. Nc3 {[%emt 0:00:17]} exd5 {[%emt 0:00:05]} 5. cxd5 {[%emt 0:00:06]} d6 {[%emt 0:00:02]} 6. e4 {[%emt 0:00:31]} g6 {[%emt 0:00:06]} 7. f4 {[%emt 0:01:46]} Bg7 {[%emt 0:01:45]} 8. Bb5+ {[%emt 0:00:10]} Nfd7 {[%emt 0:00:06]} 9. a4 {[%emt 0:00:32]} O-O {[%emt 0:12:59]} 10. Nf3 {[%emt 0:01:29]} Na6 {[%emt 0:09:17]} 11. O-O {[%emt 0:00:24]} Nb4 {[%emt 0:02:57]} 12. a5 {[%emt 0:11:56]} a6 {[%emt 0:01:45]} 13. Be2 {[%emt 0:00:59]} Re8 {[%emt 0:09:27]} 14. Kh1 {[%emt 0:06:07]} Nf6 {[%emt 0:08:36]} 15. Nd2 {[%emt 0:01:45]} Bd7 {[%emt 0:02:18]} 16. g4 {[%emt 0:03:45]} Bb5 {[%emt 0:08:05]} 17. Nxb5 {[%emt 0:15:42]} axb5 {[%emt 0:00:12]} 18. Bxb5 {[%emt 0:00:07]} Re7 {[%emt 0:03:55]} 19. Qf3 {[%emt 0:02:15]} Nc2 {[%emt 0:11:41]} 20. Ra4 {[%emt 0:00:10]} Rxa5 {[%emt 0:12:52]} 21. Rxa5 {[%emt 0:01:12]} Qxa5 {[%emt 0:00:06]} 22. Bd3 {[%emt 0:01:53]} Nd4 {[%emt 0:00:13]} 23. Qg2 {[%emt 0:00:46]} b5 {[%emt 0:04:30]} 24. e5 {[%emt 0:05:12]} dxe5 {[%emt 0:00:22]} 25. g5 {[%emt 0:00:06]} Nd7 {[%emt 0:01:55]} 26. Ne4 {[%emt 0:04:15]} exf4 {[%emt 0:04:29]} 27. Bxf4 {[%emt 0:00:32]} c4 {[%emt 0:00:29]} 28. Bd6 {[%emt 0:05:54]} Re8 {[%emt 0:01:30]} 29. Qf2 {[%emt 0:01:34]} Nf5 {[%emt 0:00:01]} 30. Nf6+ {[%emt 0:01:57]} Nxf6 {[%emt 0:00:05]} 31. Bxf5 {[%emt 0:00:31]} Qd8 {[%emt 0:01:13]} 32. gxf6 {[%emt 0:10:46]} Qxd6 {[%emt 0:00:04]} 33. Be6 {[%emt 0:00:25]} Bh6 {[%emt 0:01:49]} 34. Qa7 {[%emt 0:00:13]} Rf8 {[%emt 0:00:09]} 35. Qe7 {[%emt 0:00:27]} Qb6 {[%emt 0:01:57]} 36. Rd1 {[%emt 0:22:25]} Qf2 {[%emt 0:00:31]} 37. Bg4 {[%emt 0:00:36]} Bg5 {[%emt 0:00:24]} 38. Qe2 {[%emt 0:01:02]} Qxe2 39. Bxe2 {[%emt 0:00:01]} Bxf6 {[%emt 0:00:21]} 40. b3 {[%emt 0:01:11]} cxb3 {[%emt 0:00:47]} 41. Bxb5 {[%emt 0:31:08]} b2 {[%emt 0:30:51]} 42. Kg2 {[%emt 0:00:00]} Rc8 {[%emt 0:00:00]} 43. Bc6 {[%emt 0:00:00]} Rb8 {[%emt 0:00:00]} 44. Rb1 {[%emt 0:00:00]} Rb4 {[%emt 0:00:00]} 45. h3 {[%emt 0:00:00]} Rc4 {[%emt 0:00:00]} 46. Bb5 {[%emt 0:00:00]} Rc5 {[%emt 0:00:00]} 47. Bd3 {[%emt 0:00:00]} Rxd5 {[%emt 0:00:00]} 48. Be4 {[%emt 0:00:00]} Rd2+ {[%emt 0:00:00]} 49. Kf1 {[%emt 0:00:00]} Bc3 {[%emt 0:00:00]} 50. Kg1 {[%emt 0:00:00]} f5 {[%emt 0:00:00]} 51. Bf3 {[%emt 0:00:00]} Rc2 {[%emt 0:00:00]} 52. Bd5+ {[%emt 0:00:00]} Kg7 {[%emt 0:00:00]} 53. Ba2 {[%emt 0:00:00]} Rc1+ {[%emt 0:00:00]} 54. Kg2 {[%emt 0:00:00]} Kf6 {[%emt 0:00:00]} 0-1